{"text_format":"1","workbook":"xlsx","n_sheets":14,"sheets":["Course Planner","Planner Background","Week 1","Word 1","Week 1 Background","Week 2","Week 2 Background","Word 2","Week 3","Week 3 Background","Word 3","Word 4","Week 4","Week 4 Background"],"not_rendered":{"charts":8,"images":11,"macros":1,"external_links":0,"defined_names":1,"comments":0,"pivot_tables":8},"unopened":[],"bounds":{"document_bytes":16777216,"sheet_cells":100000,"rows_first":2000,"rows_last":500,"rows_between":2000,"halvings":0,"cell_chars":16384,"cell_head_chars":4096},"cells_cut":0,"cells_raw":0,"read":"whole","date_system":"1900"}

{"sheet":"Course Planner","index":0,"n_rows":55,"n_cols":11,"rows_kept":55,"cut":false,"hidden":false,"merged":[[34,1,39,12],[41,1,46,12],[48,1,53,12],[55,1,60,12],[4,1,4,2],[5,1,5,2],[6,1,6,2],[7,1,7,2],[8,1,8,2],[9,1,9,2],[4,3,4,12],[5,3,5,12],[6,3,6,12],[7,3,7,12],[8,3,8,12],[9,3,9,12],[14,11,17,12],[18,11,21,12],[22,11,25,12],[26,11,29,12],[26,1,29,1],[26,3,29,3],[26,8,29,8],[22,1,25,1],[22,3,25,3],[22,8,25,8],[22,5,22,7],[23,5,23,7],[24,5,24,7],[25,5,25,7],[26,5,26,7],[27,5,27,7],[23,2,25,2],[27,2,29,2],[18,5,18,7],[19,5,19,7],[20,5,20,7],[21,5,21,7],[15,2,17,2],[19,2,21,2],[14,3,17,3],[14,8,17,8],[14,1,17,1],[14,5,14,7],[15,5,15,7],[16,5,16,7],[17,5,17,7],[11,2,12,7],[33,1,33,12],[40,1,40,12],[47,1,47,12],[54,1,54,12],[13,9,13,10],[28,5,28,7],[29,5,29,7],[14,9,17,10],[18,9,21,10],[22,9,25,10],[26,9,29,10],[13,4,13,7],[18,1,21,1],[18,3,21,3],[18,8,21,8]]}
[null,null,null,null,null,null,null,null,null,null,"©The Open University. CC-BY-NC-SA "]
[]
[null,"General Information"]
[]
[null,"Course title"]
[null,"Number of weeks"]
[null,"Total study time"]
[null,"Target learners (eg academic level)"]
[null,"Requirements / pre-requisites for learners "]
[null,"Educator(s)"]
[]
[null,"Week Overview"]
[]
[null,"Week number","Title","Summary","Learning Outcomes",null,null,null,"Hours"]
[null,"Week 1","Insert title here…",null,1]
[null,null,null,null,2]
[null,null,null,null,3]
[null,null,null,null,4]
[null,"Week 2"]
[]
[]
[]
[null,"Week 3"]
[]
[]
[]
[null,"Week 4"]
[]
[]
[]
[]
[null,"Journey Planner (Optional)"]
[]
[null,"Content and experience: What topics, themes and learning outcomes will be covered? How will these be presented and what step types will learners engage with them?"]
[]
[]
[]
[]
[]
[]
[null,"Communication and collaboration: How will learners communicate and collaborate? What materials and tools will be used? Will educators and mentors be used to support collaborative activity?"]
[]
[]
[]
[]
[]
[]
[null,"Guidance and support: How will learners be guided and supported through the course? What materials and tools will be used? Will educators and mentors be used to support students?"]
[]
[]
[]
[]
[]
[]
[null,"Reflection and demonstration: How will learners reflect on and monitor progress against personal aims and course outcomes? What is the assessment strategy? "]

{"sheet":"Planner Background","index":1,"n_rows":46,"n_cols":4,"rows_kept":46,"cut":false,"hidden":true,"merged":[[45,0,48,0],[45,2,48,2],[45,4,45,6],[45,7,48,7],[45,8,48,9],[45,10,48,11],[46,1,48,1],[46,4,46,6],[47,4,47,6],[48,4,48,6],[41,0,44,0],[41,2,44,2],[41,4,41,6],[41,7,44,7],[41,8,44,9],[41,10,44,11],[42,1,44,1],[42,4,42,6],[43,4,43,6],[44,4,44,6],[37,0,40,0],[37,2,40,2],[37,4,37,6],[37,7,40,7],[37,8,40,9],[37,10,40,11],[38,1,40,1],[38,4,38,6],[39,4,39,6],[40,4,40,6],[33,0,36,0],[33,2,36,2],[33,4,33,6],[33,7,36,7],[33,8,36,9],[33,10,36,11],[34,1,36,1],[34,4,34,6],[35,4,35,6],[36,4,36,6],[29,0,32,0],[29,2,32,2],[29,4,29,6],[29,7,32,7],[29,8,32,9],[29,10,32,11],[30,1,32,1],[30,4,30,6],[31,4,31,6],[32,4,32,6],[25,0,28,0],[25,2,28,2],[25,4,25,6],[25,7,28,7],[25,8,28,9],[25,10,28,11],[26,1,28,1],[26,4,26,6],[27,4,27,6],[28,4,28,6],[20,0,23,0],[20,2,23,2],[20,4,20,6],[20,7,23,7],[20,8,23,9],[20,10,23,11],[21,1,23,1],[21,4,21,6],[22,4,22,6],[23,4,23,6],[16,0,19,0],[16,2,19,2],[16,4,16,6],[16,7,19,7],[16,8,19,9],[16,10,19,11],[17,1,19,1],[17,4,17,6],[18,4,18,6],[19,4,19,6],[12,0,15,0],[12,2,15,2],[12,4,12,6],[12,7,15,7],[12,8,15,9],[12,10,15,11],[13,1,15,1],[13,4,13,6],[14,4,14,6],[15,4,15,6],[8,0,11,0],[8,2,11,2],[8,4,8,6],[8,7,11,7],[8,8,11,9],[8,10,11,11],[9,1,11,1],[9,4,9,6],[10,4,10,6],[11,4,11,6],[4,0,7,0],[4,2,7,2],[4,4,4,6],[4,7,7,7],[4,8,7,9],[4,10,7,11],[5,1,7,1],[5,4,5,6],[6,4,6,6],[7,4,7,6],[0,0,3,0],[0,2,3,2],[0,4,0,6],[0,7,3,7],[0,8,3,9],[0,10,3,11],[1,1,3,1],[1,4,1,6],[2,4,2,6],[3,4,3,6]]}
["Week 1",null,null,1]
[null,null,null,2]
[null,null,null,3]
[null,null,null,4]
["Week 2",null,null,1]
[null,null,null,2]
[null,null,null,3]
[null,null,null,4]
["Week 3",null,null,1]
[null,null,null,2]
[null,null,null,3]
[null,null,null,4]
["Week 4",null,null,1]
[null,null,null,2]
[null,null,null,3]
[null,null,null,4]
["Week 5",null,null,1]
[null,null,null,2]
[null,null,null,3]
[null,null,null,4]
["Week 6",null,null,1]
[null,null,null,2]
[null,null,null,3]
[null,null,null,4]
[]
["Week 1"]
[]
[]
[]
["Week 2"]
[]
[]
[]
["Week 3"]
[]
[]
[]
["Week 4"]
[]
[]
[]
["Week 5"]
[]
[]
[]
["Week 6"]

{"sheet":"Week 1","index":2,"n_rows":44,"n_cols":19,"rows_kept":44,"cut":false,"hidden":false,"merged":[[4,17,7,17],[4,18,7,18],[5,13,7,13],[2,15,2,16],[4,6,7,6],[4,7,7,7],[4,8,7,8],[4,9,7,9],[4,10,7,10],[4,11,7,11],[4,12,7,12],[4,14,7,14],[2,10,2,11],[2,0,2,4],[8,1,8,3],[9,1,9,3],[10,1,10,3],[11,1,11,3]]}
[]
[]
["Dashboard",null,null,null,null,null,"Options","Type","Title","Subject","Duration",null,"Assets","Activity","Discussion Point","Links",null,"Notes","Word count"]
[null,null,null,null,null,null,"Section 1",null,null,null,null,null,null,null,null,"•"]
[null,null,"Section",null,null,null,"Step 1",null,null,null,null,"mins",null,null,null,"•"]
[null,null,"Step",4,null,null,null,null,null,null,null,null,null,null,null,"•"]
[null,null,null,null,null,null,null,null,null,null,null,null,null,null,null,"•"]
[null,"Learning Outcomes",null,null,null,null,null,null,null,null,null,null,null,null,null,"•"]
[1]
[2]
[3]
[4]
[]
[]
[]
[]
[]
[]
[]
[]
[null,null,1,2]
[null,null,"Total ",{"$f":"SUM(K:K)","v":0}]
[null,null,"Remaining",{"$f":"180-SUM(K:K)","v":180}]
[]
[]
[]
[]
[]
[]
[]
[]
[]
[]
[]
[]
[]
[null,null,"Activity type","Count"]
[null,null,"Assimilative",{"$f":"SUMIF(N:N,\"[Assimilative]\",K:K)","v":0}]
[null,null,"Finding and handling information",{"$f":"SUMIF(N:N,\"[Finding and handling information]\",K:K)","v":0}]
[null,null,"Communication",{"$f":"SUMIF(N:N,\"[Communication]\",K:K)","v":0}]
[null,null,"Productive",{"$f":"SUMIF(N:N,\"[Productive]\",K:K)","v":0}]
[null,null,"Experiential",{"$f":"SUMIF(N:N,\"[Experiential]\",K:K)","v":0}]
[null,null,"Interactive/adaptive",{"$f":"SUMIF(N:N,\"[Interactive/adaptive]\",K:K)","v":0}]
[null,null,"Assessment",{"$f":"SUMIF(N:N,\"[Assessment]\",K:K)","v":0}]

{"sheet":"Word 1","index":3,"n_rows":0,"n_cols":0,"rows_kept":0,"cut":false,"hidden":true,"merged":[]}

{"sheet":"Week 1 Background","index":4,"n_rows":70,"n_cols":10,"rows_kept":70,"cut":false,"hidden":true,"merged":[[50,5,58,5],[50,6,58,6],[50,8,58,8],[50,11,58,11],[50,12,58,12],[51,7,58,7],[50,0,58,0],[50,1,58,1],[50,2,58,2],[50,3,58,3],[50,4,58,4],[41,0,48,0],[41,1,48,1],[41,2,48,2],[41,3,48,3],[41,4,48,4],[33,0,39,0],[33,1,39,1],[33,2,39,2],[33,3,39,3],[33,4,39,4],[26,0,31,0],[26,1,31,1],[26,2,31,2],[26,3,31,3],[26,4,31,4],[20,8,24,8],[20,11,24,11],[20,12,24,12],[21,7,24,7],[15,0,18,0],[20,0,24,0],[20,1,24,1],[20,2,24,2],[20,3,24,3],[20,4,24,4],[60,8,69,8],[60,11,69,11],[60,12,69,12],[61,7,69,7],[60,0,69,0],[60,1,69,1],[60,2,69,2],[60,3,69,3],[60,4,69,4],[60,5,69,5],[60,6,69,6],[33,8,39,8],[33,11,39,11],[33,12,39,12],[34,7,39,7],[41,8,48,8],[41,11,48,11],[41,12,48,12],[42,7,48,7],[33,5,39,5],[33,6,39,6],[41,5,48,5],[41,6,48,6],[26,5,31,5],[26,6,31,6],[26,8,31,8],[26,11,31,11],[26,12,31,12],[27,7,31,7],[15,1,18,1],[15,2,18,2],[15,3,18,3],[15,4,18,4],[15,5,18,5],[15,6,18,6],[15,8,18,8],[15,11,18,11],[15,12,18,12],[16,7,18,7],[20,5,24,5],[20,6,24,6]]}
[]
[]
["Row Labels","Sum of 2",null,"Row Labels","Sum of Count"]
["Remaining",180,null,"Assessment",0]
["Total ",0,null,"Assimilative",0]
["Grand Total",180,null,"Communication",0]
[null,null,null,"Experiential",0]
[null,null,null,"Finding and handling information",0]
[null,null,null,"Interactive/adaptive",0]
[null,null,null,"Productive",0]
[null,null,null,"Grand Total",0]
[]
[]
["Section […]",null,null,null,null,null,null,null,null,"•"]
[]
["Step […]",null,null,null,null,"mins",null,null,null,"•"]
[null,null,null,null,null,null,null,null,null,"•"]
[null,null,null,null,null,null,null,null,null,"•"]
[null,null,null,null,null,null,null,null,null,"•"]
[]
["Step […]",null,null,null,null,"mins",null,null,null,"•"]
[null,null,null,null,null,null,null,null,null,"•"]
[null,null,null,null,null,null,null,null,null,"•"]
[null,null,null,null,null,null,null,null,null,"•"]
[null,null,null,null,null,null,null,null,null,"•"]
[]
["Step […]",null,null,null,null,"mins",null,null,null,"•"]
[null,null,null,null,null,null,null,null,null,"•"]
[null,null,null,null,null,null,null,null,null,"•"]
[null,null,null,null,null,null,null,null,null,"•"]
[null,null,null,null,null,null,null,null,null,"•"]
[null,null,null,null,null,null,null,null,null,"•"]
[]
["Step […]",null,null,null,null,"mins",null,null,null,"•"]
[null,null,null,null,null,null,null,null,null,"•"]
[null,null,null,null,null,null,null,null,null,"•"]
[null,null,null,null,null,null,null,null,null,"•"]
[null,null,null,null,null,null,null,null,null,"•"]
[null,null,null,null,null,null,null,null,null,"•"]
[null,null,null,null,null,null,null,null,null,"•"]
[]
["Step […]",null,null,null,null,"mins",null,null,null,"•"]
[null,null,null,null,null,null,null,null,null,"•"]
[null,null,null,null,null,null,null,null,null,"•"]
[null,null,null,null,null,null,null,null,null,"•"]
[null,null,null,null,null,null,null,null,null,"•"]
[null,null,null,null,null,null,null,null,null,"•"]
[null,null,null,null,null,null,null,null,null,"•"]
[null,null,null,null,null,null,null,null,null,"•"]
[]
["Step […]",null,null,null,null,"mins",null,null,null,"•"]
[null,null,null,null,null,null,null,null,null,"•"]
[null,null,null,null,null,null,null,null,null,"•"]
[null,null,null,null,null,null,null,null,null,"•"]
[null,null,null,null,null,null,null,null,null,"•"]
[null,null,null,null,null,null,null,null,null,"•"]
[null,null,null,null,null,null,null,null,null,"•"]
[null,null,null,null,null,null,null,null,null,"•"]
[null,null,null,null,null,null,null,null,null,"•"]
[]
["Step […]",null,null,null,null,"mins",null,null,null,"•"]
[null,null,null,null,null,null,null,null,null,"•"]
[null,null,null,null,null,null,null,null,null,"•"]
[null,null,null,null,null,null,null,null,null,"•"]
[null,null,null,null,null,null,null,null,null,"•"]
[null,null,null,null,null,null,null,null,null,"•"]
[null,null,null,null,null,null,null,null,null,"•"]
[null,null,null,null,null,null,null,null,null,"•"]
[null,null,null,null,null,null,null,null,null,"•"]
[null,null,null,null,null,null,null,null,null,"•"]

{"sheet":"Week 2","index":5,"n_rows":44,"n_cols":19,"rows_kept":44,"cut":false,"hidden":true,"merged":[[4,18,7,18],[5,13,7,13],[2,10,2,11],[2,15,2,16],[4,6,7,6],[4,7,7,7],[4,8,7,8],[4,9,7,9],[4,10,7,10],[4,11,7,11],[4,12,7,12],[4,14,7,14],[11,1,11,3],[2,0,2,4],[4,17,7,17],[8,1,8,3],[9,1,9,3],[10,1,10,3]]}
[]
[]
["Dashboard",null,null,null,null,null,null,"Type","Title","Subject","Duration",null,"Assets","Activity","Discussion Point","Links",null,"Notes","Word count"]
[null,null,null,null,null,null,"Section 1",null,null,null,null,null,null,null,null,"•"]
[null,null,"Section",null,null,null,"Step 1",null,null,null,null,"mins",null,null,null,"•"]
[null,null,"Step",4,null,null,null,null,null,null,null,null,null,null,null,"•"]
[null,null,null,null,null,null,null,null,null,null,null,null,null,null,null,"•"]
[null,"Learning Outcomes",null,null,null,null,null,null,null,null,null,null,null,null,null,"•"]
[1]
[2]
[3]
[4]
[]
[]
[]
[]
[]
[]
[]
[]
[null,null,1,2]
[null,null,"Total ",{"$f":"SUM(K:K)","v":0}]
[null,null,"Remaining",{"$f":"180-SUM(K:K)","v":180}]
[]
[]
[]
[]
[]
[]
[]
[]
[]
[]
[]
[]
[]
[null,null,"Activity type","Count"]
[null,null,"Assimilative",{"$f":"SUMIF(N:N,\"[Assimilative]\",K:K)","v":0}]
[null,null,"Finding and handling information",{"$f":"SUMIF(N:N,\"[Finding and handling information]\",K:K)","v":0}]
[null,null,"Communication",{"$f":"SUMIF(N:N,\"[Communication]\",K:K)","v":0}]
[null,null,"Productive",{"$f":"SUMIF(N:N,\"[Productive]\",K:K)","v":0}]
[null,null,"Experiential",{"$f":"SUMIF(N:N,\"[Experiential]\",K:K)","v":0}]
[null,null,"Interactive/adaptive",{"$f":"SUMIF(N:N,\"[Interactive/adaptive]\",K:K)","v":0}]
[null,null,"Assessment",{"$f":"SUMIF(N:N,\"[Assessment]\",K:K)","v":0}]

{"sheet":"Week 2 Background","index":6,"n_rows":70,"n_cols":10,"rows_kept":70,"cut":false,"hidden":true,"merged":[[41,0,48,0],[41,1,48,1],[50,0,58,0],[50,1,58,1],[50,2,58,2],[26,11,31,11],[26,12,31,12],[27,7,31,7],[33,5,39,5],[33,6,39,6],[33,8,39,8],[33,11,39,11],[33,12,39,12],[34,7,39,7],[26,8,31,8],[33,0,39,0],[33,1,39,1],[33,2,39,2],[33,3,39,3],[33,4,39,4],[15,8,18,8],[15,11,18,11],[15,12,18,12],[16,7,18,7],[20,0,24,0],[20,1,24,1],[20,2,24,2],[20,3,24,3],[20,4,24,4],[20,5,24,5],[20,6,24,6],[20,8,24,8],[20,11,24,11],[20,12,24,12],[21,7,24,7],[15,0,18,0],[15,6,18,6],[26,0,31,0],[26,1,31,1],[26,2,31,2],[26,3,31,3],[26,4,31,4],[26,5,31,5],[26,6,31,6],[15,1,18,1],[15,2,18,2],[15,3,18,3],[15,4,18,4],[15,5,18,5],[60,5,69,5],[60,8,69,8],[41,2,48,2],[41,3,48,3],[41,4,48,4],[41,5,48,5],[41,6,48,6],[42,7,48,7],[50,5,58,5],[50,6,58,6],[50,8,58,8],[51,7,58,7],[50,3,58,3],[50,4,58,4],[60,0,69,0],[60,1,69,1],[60,2,69,2],[60,3,69,3],[60,4,69,4],[60,11,69,11],[60,12,69,12],[61,7,69,7],[60,6,69,6],[41,8,48,8],[41,11,48,11],[41,12,48,12],[50,11,58,11],[50,12,58,12]]}
[]
[]
["Row Labels","Sum of 2",null,"Row Labels","Sum of Count"]
["Remaining",180,null,"Assessment",0]
["Total ",0,null,"Assimilative",0]
["Grand Total",180,null,"Communication",0]
[null,null,null,"Experiential",0]
[null,null,null,"Finding and handling information",0]
[null,null,null,"Interactive/adaptive",0]
[null,null,null,"Productive",0]
[null,null,null,"Grand Total",0]
[]
[]
["Section […]",null,null,null,null,null,null,null,null,"•"]
[]
["Step […]",null,null,null,null,"mins",null,null,null,"•"]
[null,null,null,null,null,null,null,null,null,"•"]
[null,null,null,null,null,null,null,null,null,"•"]
[null,null,null,null,null,null,null,null,null,"•"]
[]
["Step […]",null,null,null,null,"mins",null,null,null,"•"]
[null,null,null,null,null,null,null,null,null,"•"]
[null,null,null,null,null,null,null,null,null,"•"]
[null,null,null,null,null,null,null,null,null,"•"]
[null,null,null,null,null,null,null,null,null,"•"]
[]
["Step […]",null,null,null,null,"mins",null,null,null,"•"]
[null,null,null,null,null,null,null,null,null,"•"]
[null,null,null,null,null,null,null,null,null,"•"]
[null,null,null,null,null,null,null,null,null,"•"]
[null,null,null,null,null,null,null,null,null,"•"]
[null,null,null,null,null,null,null,null,null,"•"]
[]
["Step […]",null,null,null,null,"mins",null,null,null,"•"]
[null,null,null,null,null,null,null,null,null,"•"]
[null,null,null,null,null,null,null,null,null,"•"]
[null,null,null,null,null,null,null,null,null,"•"]
[null,null,null,null,null,null,null,null,null,"•"]
[null,null,null,null,null,null,null,null,null,"•"]
[null,null,null,null,null,null,null,null,null,"•"]
[]
["Step […]",null,null,null,null,"mins",null,null,null,"•"]
[null,null,null,null,null,null,null,null,null,"•"]
[null,null,null,null,null,null,null,null,null,"•"]
[null,null,null,null,null,null,null,null,null,"•"]
[null,null,null,null,null,null,null,null,null,"•"]
[null,null,null,null,null,null,null,null,null,"•"]
[null,null,null,null,null,null,null,null,null,"•"]
[null,null,null,null,null,null,null,null,null,"•"]
[]
["Step […]",null,null,null,null,"mins",null,null,null,"•"]
[null,null,null,null,null,null,null,null,null,"•"]
[null,null,null,null,null,null,null,null,null,"•"]
[null,null,null,null,null,null,null,null,null,"•"]
[null,null,null,null,null,null,null,null,null,"•"]
[null,null,null,null,null,null,null,null,null,"•"]
[null,null,null,null,null,null,null,null,null,"•"]
[null,null,null,null,null,null,null,null,null,"•"]
[null,null,null,null,null,null,null,null,null,"•"]
[]
["Step […]",null,null,null,null,"mins",null,null,null,"•"]
[null,null,null,null,null,null,null,null,null,"•"]
[null,null,null,null,null,null,null,null,null,"•"]
[null,null,null,null,null,null,null,null,null,"•"]
[null,null,null,null,null,null,null,null,null,"•"]
[null,null,null,null,null,null,null,null,null,"•"]
[null,null,null,null,null,null,null,null,null,"•"]
[null,null,null,null,null,null,null,null,null,"•"]
[null,null,null,null,null,null,null,null,null,"•"]
[null,null,null,null,null,null,null,null,null,"•"]

{"sheet":"Word 2","index":7,"n_rows":0,"n_cols":0,"rows_kept":0,"cut":false,"hidden":true,"merged":[]}

{"sheet":"Week 3","index":8,"n_rows":44,"n_cols":19,"rows_kept":44,"cut":false,"hidden":true,"merged":[[4,18,7,18],[5,13,7,13],[2,10,2,11],[2,15,2,16],[4,6,7,6],[4,7,7,7],[4,8,7,8],[4,9,7,9],[4,10,7,10],[4,11,7,11],[4,12,7,12],[4,14,7,14],[11,1,11,3],[2,0,2,4],[4,17,7,17],[8,1,8,3],[9,1,9,3],[10,1,10,3]]}
[]
[]
["Dashboard",null,null,null,null,null,null,"Type","Title","Subject","Duration",null,"Assets","Activity","Discussion Point","Links",null,"Notes","Word count"]
[null,null,null,null,null,null,"Section 1",null,null,null,null,null,null,null,null,"•"]
[null,null,"Section",null,null,null,"Step 1",null,null,null,null,"mins",null,null,null,"•"]
[null,null,"Step",4,null,null,null,null,null,null,null,null,null,null,null,"•"]
[null,null,null,null,null,null,null,null,null,null,null,null,null,null,null,"•"]
[null,"Learning Outcomes",null,null,null,null,null,null,null,null,null,null,null,null,null,"•"]
[1]
[2]
[3]
[4]
[]
[]
[]
[]
[]
[]
[]
[]
[null,null,1,2]
[null,null,"Total ",{"$f":"SUM(K:K)","v":0}]
[null,null,"Remaining",{"$f":"180-SUM(K:K)","v":180}]
[]
[]
[]
[]
[]
[]
[]
[]
[]
[]
[]
[]
[]
[null,null,"Activity type","Count"]
[null,null,"Assimilative",{"$f":"SUMIF(N:N,\"[Assimilative]\",K:K)","v":0}]
[null,null,"Finding and handling information",{"$f":"SUMIF(N:N,\"[Finding and handling information]\",K:K)","v":0}]
[null,null,"Communication",{"$f":"SUMIF(N:N,\"[Communication]\",K:K)","v":0}]
[null,null,"Productive",{"$f":"SUMIF(N:N,\"[Productive]\",K:K)","v":0}]
[null,null,"Experiential",{"$f":"SUMIF(N:N,\"[Experiential]\",K:K)","v":0}]
[null,null,"Interactive/adaptive",{"$f":"SUMIF(N:N,\"[Interactive/adaptive]\",K:K)","v":0}]
[null,null,"Assessment",{"$f":"SUMIF(N:N,\"[Assessment]\",K:K)","v":0}]

{"sheet":"Week 3 Background","index":9,"n_rows":70,"n_cols":10,"rows_kept":70,"cut":false,"hidden":true,"merged":[[41,0,48,0],[41,1,48,1],[50,0,58,0],[50,1,58,1],[50,2,58,2],[26,11,31,11],[26,12,31,12],[27,7,31,7],[33,5,39,5],[33,6,39,6],[33,8,39,8],[33,11,39,11],[33,12,39,12],[34,7,39,7],[26,8,31,8],[33,0,39,0],[33,1,39,1],[33,2,39,2],[33,3,39,3],[33,4,39,4],[15,8,18,8],[15,11,18,11],[15,12,18,12],[16,7,18,7],[20,0,24,0],[20,1,24,1],[20,2,24,2],[20,3,24,3],[20,4,24,4],[20,5,24,5],[20,6,24,6],[20,8,24,8],[20,11,24,11],[20,12,24,12],[21,7,24,7],[15,0,18,0],[15,6,18,6],[26,0,31,0],[26,1,31,1],[26,2,31,2],[26,3,31,3],[26,4,31,4],[26,5,31,5],[26,6,31,6],[15,1,18,1],[15,2,18,2],[15,3,18,3],[15,4,18,4],[15,5,18,5],[60,5,69,5],[60,8,69,8],[41,2,48,2],[41,3,48,3],[41,4,48,4],[41,5,48,5],[41,6,48,6],[42,7,48,7],[50,5,58,5],[50,6,58,6],[50,8,58,8],[51,7,58,7],[50,3,58,3],[50,4,58,4],[60,0,69,0],[60,1,69,1],[60,2,69,2],[60,3,69,3],[60,4,69,4],[60,11,69,11],[60,12,69,12],[61,7,69,7],[60,6,69,6],[41,8,48,8],[41,11,48,11],[41,12,48,12],[50,11,58,11],[50,12,58,12]]}
[]
[]
["Row Labels","Sum of 2",null,"Row Labels","Sum of Count"]
["Remaining",180,null,"Assessment",0]
["Total ",0,null,"Assimilative",0]
["Grand Total",180,null,"Communication",0]
[null,null,null,"Experiential",0]
[null,null,null,"Finding and handling information",0]
[null,null,null,"Interactive/adaptive",0]
[null,null,null,"Productive",0]
[null,null,null,"Grand Total",0]
[]
[]
["Section […]",null,null,null,null,null,null,null,null,"•"]
[]
["Step […]",null,null,null,null,"mins",null,null,null,"•"]
[null,null,null,null,null,null,null,null,null,"•"]
[null,null,null,null,null,null,null,null,null,"•"]
[null,null,null,null,null,null,null,null,null,"•"]
[]
["Step […]",null,null,null,null,"mins",null,null,null,"•"]
[null,null,null,null,null,null,null,null,null,"•"]
[null,null,null,null,null,null,null,null,null,"•"]
[null,null,null,null,null,null,null,null,null,"•"]
[null,null,null,null,null,null,null,null,null,"•"]
[]
["Step […]",null,null,null,null,"mins",null,null,null,"•"]
[null,null,null,null,null,null,null,null,null,"•"]
[null,null,null,null,null,null,null,null,null,"•"]
[null,null,null,null,null,null,null,null,null,"•"]
[null,null,null,null,null,null,null,null,null,"•"]
[null,null,null,null,null,null,null,null,null,"•"]
[]
["Step […]",null,null,null,null,"mins",null,null,null,"•"]
[null,null,null,null,null,null,null,null,null,"•"]
[null,null,null,null,null,null,null,null,null,"•"]
[null,null,null,null,null,null,null,null,null,"•"]
[null,null,null,null,null,null,null,null,null,"•"]
[null,null,null,null,null,null,null,null,null,"•"]
[null,null,null,null,null,null,null,null,null,"•"]
[]
["Step […]",null,null,null,null,"mins",null,null,null,"•"]
[null,null,null,null,null,null,null,null,null,"•"]
[null,null,null,null,null,null,null,null,null,"•"]
[null,null,null,null,null,null,null,null,null,"•"]
[null,null,null,null,null,null,null,null,null,"•"]
[null,null,null,null,null,null,null,null,null,"•"]
[null,null,null,null,null,null,null,null,null,"•"]
[null,null,null,null,null,null,null,null,null,"•"]
[]
["Step […]",null,null,null,null,"mins",null,null,null,"•"]
[null,null,null,null,null,null,null,null,null,"•"]
[null,null,null,null,null,null,null,null,null,"•"]
[null,null,null,null,null,null,null,null,null,"•"]
[null,null,null,null,null,null,null,null,null,"•"]
[null,null,null,null,null,null,null,null,null,"•"]
[null,null,null,null,null,null,null,null,null,"•"]
[null,null,null,null,null,null,null,null,null,"•"]
[null,null,null,null,null,null,null,null,null,"•"]
[]
["Step […]",null,null,null,null,"mins",null,null,null,"•"]
[null,null,null,null,null,null,null,null,null,"•"]
[null,null,null,null,null,null,null,null,null,"•"]
[null,null,null,null,null,null,null,null,null,"•"]
[null,null,null,null,null,null,null,null,null,"•"]
[null,null,null,null,null,null,null,null,null,"•"]
[null,null,null,null,null,null,null,null,null,"•"]
[null,null,null,null,null,null,null,null,null,"•"]
[null,null,null,null,null,null,null,null,null,"•"]
[null,null,null,null,null,null,null,null,null,"•"]

{"sheet":"Word 3","index":10,"n_rows":0,"n_cols":0,"rows_kept":0,"cut":false,"hidden":true,"merged":[]}

{"sheet":"Word 4","index":11,"n_rows":0,"n_cols":0,"rows_kept":0,"cut":false,"hidden":true,"merged":[]}

{"sheet":"Week 4","index":12,"n_rows":44,"n_cols":19,"rows_kept":44,"cut":false,"hidden":true,"merged":[[4,6,7,6],[4,7,7,7],[4,8,7,8],[4,9,7,9],[4,10,7,10],[4,17,7,17],[4,18,7,18],[5,13,7,13],[2,10,2,11],[2,15,2,16],[4,11,7,11],[4,12,7,12],[4,14,7,14],[2,0,2,4],[8,1,8,3],[9,1,9,3],[10,1,10,3],[11,1,11,3]]}
[]
[]
["Dashboard",null,null,null,null,null,null,"Type","Title","Subject","Duration",null,"Assets","Activity","Discussion Point","Links",null,"Notes","Word count"]
[null,null,null,null,null,null,"Section 1",null,null,null,null,null,null,null,null,"•"]
[null,null,"Section",null,null,null,"Step 1",null,null,null,null,"mins",null,null,null,"•"]
[null,null,"Step",4,null,null,null,null,null,null,null,null,null,null,null,"•"]
[null,null,null,null,null,null,null,null,null,null,null,null,null,null,null,"•"]
[null,"Learning Outcomes",null,null,null,null,null,null,null,null,null,null,null,null,null,"•"]
[1]
[2]
[3]
[4]
[]
[]
[]
[]
[]
[]
[]
[]
[null,null,1,2]
[null,null,"Total ",{"$f":"SUM(K:K)","v":0}]
[null,null,"Remaining",{"$f":"180-SUM(K:K)","v":180}]
[]
[]
[]
[]
[]
[]
[]
[]
[]
[]
[]
[]
[]
[null,null,"Activity type","Count"]
[null,null,"Assimilative",{"$f":"SUMIF(N:N,\"[Assimilative]\",K:K)","v":0}]
[null,null,"Finding and handling information",{"$f":"SUMIF(N:N,\"[Finding and handling information]\",K:K)","v":0}]
[null,null,"Communication",{"$f":"SUMIF(N:N,\"[Communication]\",K:K)","v":0}]
[null,null,"Productive",{"$f":"SUMIF(N:N,\"[Productive]\",K:K)","v":0}]
[null,null,"Experiential",{"$f":"SUMIF(N:N,\"[Experiential]\",K:K)","v":0}]
[null,null,"Interactive/adaptive",{"$f":"SUMIF(N:N,\"[Interactive/adaptive]\",K:K)","v":0}]
[null,null,"Assessment",{"$f":"SUMIF(N:N,\"[Assessment]\",K:K)","v":0}]

{"sheet":"Week 4 Background","index":13,"n_rows":70,"n_cols":10,"rows_kept":70,"cut":false,"hidden":true,"merged":[[50,0,58,0],[50,1,58,1],[60,5,69,5],[60,6,69,6],[60,8,69,8],[50,2,58,2],[50,3,58,3],[60,11,69,11],[60,12,69,12],[61,7,69,7],[60,0,69,0],[60,1,69,1],[60,2,69,2],[60,3,69,3],[60,4,69,4],[41,12,48,12],[42,7,48,7],[50,11,58,11],[50,12,58,12],[51,7,58,7],[50,8,58,8],[20,12,24,12],[21,7,24,7],[27,7,31,7],[33,0,39,0],[33,1,39,1],[33,2,39,2],[33,3,39,3],[33,4,39,4],[33,5,39,5],[33,6,39,6],[33,8,39,8],[33,11,39,11],[33,12,39,12],[34,7,39,7],[20,3,24,3],[26,5,31,5],[26,8,31,8],[50,4,58,4],[50,5,58,5],[50,6,58,6],[41,4,48,4],[41,5,48,5],[41,6,48,6],[41,8,48,8],[26,12,31,12],[15,5,18,5],[15,6,18,6],[15,0,18,0],[15,1,18,1],[15,2,18,2],[15,3,18,3],[15,4,18,4],[15,8,18,8],[15,11,18,11],[15,12,18,12],[16,7,18,7],[20,0,24,0],[26,2,31,2],[26,3,31,3],[26,0,31,0],[20,1,24,1],[20,2,24,2],[41,0,48,0],[41,1,48,1],[26,11,31,11],[26,1,31,1],[26,4,31,4],[20,4,24,4],[20,5,24,5],[20,6,24,6],[20,8,24,8],[20,11,24,11],[41,2,48,2],[41,3,48,3],[41,11,48,11],[26,6,31,6]]}
[]
[]
["Row Labels","Sum of 2",null,"Row Labels","Sum of Count"]
["Remaining",180,null,"Assessment",0]
["Total ",0,null,"Assimilative",0]
["Grand Total",180,null,"Communication",0]
[null,null,null,"Experiential",0]
[null,null,null,"Finding and handling information",0]
[null,null,null,"Interactive/adaptive",0]
[null,null,null,"Productive",0]
[null,null,null,"Grand Total",0]
[]
[]
["Section […]",null,null,null,null,null,null,null,null,"•"]
[]
["Step […]",null,null,null,null,"mins",null,null,null,"•"]
[null,null,null,null,null,null,null,null,null,"•"]
[null,null,null,null,null,null,null,null,null,"•"]
[null,null,null,null,null,null,null,null,null,"•"]
[]
["Step […]",null,null,null,null,"mins",null,null,null,"•"]
[null,null,null,null,null,null,null,null,null,"•"]
[null,null,null,null,null,null,null,null,null,"•"]
[null,null,null,null,null,null,null,null,null,"•"]
[null,null,null,null,null,null,null,null,null,"•"]
[]
["Step […]",null,null,null,null,"mins",null,null,null,"•"]
[null,null,null,null,null,null,null,null,null,"•"]
[null,null,null,null,null,null,null,null,null,"•"]
[null,null,null,null,null,null,null,null,null,"•"]
[null,null,null,null,null,null,null,null,null,"•"]
[null,null,null,null,null,null,null,null,null,"•"]
[]
["Step […]",null,null,null,null,"mins",null,null,null,"•"]
[null,null,null,null,null,null,null,null,null,"•"]
[null,null,null,null,null,null,null,null,null,"•"]
[null,null,null,null,null,null,null,null,null,"•"]
[null,null,null,null,null,null,null,null,null,"•"]
[null,null,null,null,null,null,null,null,null,"•"]
[null,null,null,null,null,null,null,null,null,"•"]
[]
["Step […]",null,null,null,null,"mins",null,null,null,"•"]
[null,null,null,null,null,null,null,null,null,"•"]
[null,null,null,null,null,null,null,null,null,"•"]
[null,null,null,null,null,null,null,null,null,"•"]
[null,null,null,null,null,null,null,null,null,"•"]
[null,null,null,null,null,null,null,null,null,"•"]
[null,null,null,null,null,null,null,null,null,"•"]
[null,null,null,null,null,null,null,null,null,"•"]
[]
["Step […]",null,null,null,null,"mins",null,null,null,"•"]
[null,null,null,null,null,null,null,null,null,"•"]
[null,null,null,null,null,null,null,null,null,"•"]
[null,null,null,null,null,null,null,null,null,"•"]
[null,null,null,null,null,null,null,null,null,"•"]
[null,null,null,null,null,null,null,null,null,"•"]
[null,null,null,null,null,null,null,null,null,"•"]
[null,null,null,null,null,null,null,null,null,"•"]
[null,null,null,null,null,null,null,null,null,"•"]
[]
["Step […]",null,null,null,null,"mins",null,null,null,"•"]
[null,null,null,null,null,null,null,null,null,"•"]
[null,null,null,null,null,null,null,null,null,"•"]
[null,null,null,null,null,null,null,null,null,"•"]
[null,null,null,null,null,null,null,null,null,"•"]
[null,null,null,null,null,null,null,null,null,"•"]
[null,null,null,null,null,null,null,null,null,"•"]
[null,null,null,null,null,null,null,null,null,"•"]
[null,null,null,null,null,null,null,null,null,"•"]
[null,null,null,null,null,null,null,null,null,"•"]